[Event "Late-Titled-Tuesday-Blitz-February-13-2024"]
[Site "Chess.com"]
[Date "2024.02.13"]
[Round "10"]
[White "Hikaru"]
[Black "dropstoneDP"]
[Result "1/2-1/2"]
[WhiteElo "3313"]
[BlackElo "3057"]
[TimeControl "180+1"]
[EndTime "15:56:07 PST"]
[Termination "Game drawn - timeout vs insufficient material"]

1. e4 {[%clk 0:03:00.9]} 1... e5 {[%clk 0:02:59.7]} 2. Bc4 {[%clk 0:03:00.8]}
2... Nf6 {[%clk 0:02:59.9]} 3. d3 {[%clk 0:02:59.6]} 3... c6 {[%clk 0:03:00.4]}
4. Nf3 {[%clk 0:02:59.6]} 4... d5 {[%clk 0:03:00.8]} 5. Bb3 {[%clk 0:02:59.9]}
5... Bb4+ {[%clk 0:03:00.7]} 6. Bd2 {[%clk 0:02:59.8]} 6... Bxd2+ {[%clk
0:02:58.9]} 7. Qxd2 {[%clk 0:03:00.7]} 7... a5 {[%clk 0:02:57.8]} 8. a3 {[%clk
0:02:55.8]} 8... a4 {[%clk 0:02:56.7]} 9. Ba2 {[%clk 0:02:56.3]} 9... O-O {[%clk
0:02:56.3]} 10. Nxe5 {[%clk 0:02:54.7]} 10... Qe7 {[%clk 0:02:53.1]} 11. f4
{[%clk 0:02:51.2]} 11... dxe4 {[%clk 0:02:52]} 12. Nc3 {[%clk 0:02:43.7]} 12...
exd3 {[%clk 0:02:45.6]} 13. cxd3 {[%clk 0:02:41.7]} 13... Be6 {[%clk 0:02:42.9]}
14. Bxe6 {[%clk 0:02:41.1]} 14... Qxe6 {[%clk 0:02:42.5]} 15. O-O {[%clk
0:02:40.9]} 15... Nbd7 {[%clk 0:02:40.9]} 16. Rae1 {[%clk 0:02:37.5]} 16... Qd6
{[%clk 0:02:37.2]} 17. d4 {[%clk 0:02:37.8]} 17... Rad8 {[%clk 0:02:33.4]} 18.
Nxa4 {[%clk 0:02:20.4]} 18... Nxe5 {[%clk 0:02:18.4]} 19. fxe5 {[%clk
0:02:21.3]} 19... Qxd4+ {[%clk 0:02:18.6]} 20. Qxd4 {[%clk 0:02:21.3]} 20...
Rxd4 {[%clk 0:02:19.5]} 21. exf6 {[%clk 0:02:22.2]} 21... Rxa4 {[%clk
0:02:19.1]} 22. Re7 {[%clk 0:02:23.1]} 22... b5 {[%clk 0:02:12]} 23. Rc1 {[%clk
0:02:09.6]} 23... Rc4 {[%clk 0:01:49.7]} 24. Rxc4 {[%clk 0:00:39.8]} 24... bxc4
{[%clk 0:01:50.6]} 25. Rb7 {[%clk 0:00:38.7]} 25... gxf6 {[%clk 0:01:48.2]} 26.
Kf2 {[%clk 0:00:34.8]} 26... Ra8 {[%clk 0:01:42.8]} 27. Rb6 {[%clk 0:00:25.2]}
27... c5 {[%clk 0:01:34.7]} 28. Rb5 {[%clk 0:00:19.5]} 28... c3 {[%clk
0:01:27.5]} 29. bxc3 {[%clk 0:00:20.4]} 29... Rxa3 {[%clk 0:01:23.8]} 30. Rxc5
{[%clk 0:00:20.7]} 30... Ra2+ {[%clk 0:01:24.3]} 31. Kf3 {[%clk 0:00:21.4]}
31... Rc2 {[%clk 0:01:24.6]} 32. h4 {[%clk 0:00:19.5]} 32... f5 {[%clk
0:01:21.3]} 33. Rc6 {[%clk 0:00:16.8]} 33... Kg7 {[%clk 0:01:21.5]} 34. c4
{[%clk 0:00:16.5]} 34... f6 {[%clk 0:01:19.6]} 35. g3 {[%clk 0:00:13.8]} 35...
Kg6 {[%clk 0:01:19.3]} 36. Rc8 {[%clk 0:00:14.2]} 36... Rc1 {[%clk 0:01:14]} 37.
Rc7 {[%clk 0:00:14.7]} 37... h6 {[%clk 0:01:12.4]} 38. Rc8 {[%clk 0:00:13.1]}
38... Rc2 {[%clk 0:01:12.5]} 39. c5 {[%clk 0:00:12.5]} 39... Rc3+ {[%clk
0:01:12.3]} 40. Kf4 {[%clk 0:00:12.8]} 40... Rc4+ {[%clk 0:01:11]} 41. Ke3
{[%clk 0:00:13.4]} 41... f4+ {[%clk 0:00:47.2]} 42. Kd3 {[%clk 0:00:13.7]} 42...
f3 {[%clk 0:00:44.7]} 43. Ke3 {[%clk 0:00:14.4]} 43... Rc3+ {[%clk 0:00:43.7]}
44. Kf2 {[%clk 0:00:15.1]} 44... Kf5 {[%clk 0:00:44.1]} 45. c6 {[%clk
0:00:15.7]} 45... Kg4 {[%clk 0:00:40.2]} 46. Rg8+ {[%clk 0:00:15.7]} 46... Kf5
{[%clk 0:00:39.3]} 47. Rc8 {[%clk 0:00:15.6]} 47... Kg4 {[%clk 0:00:39.3]} 48.
Rg8+ {[%clk 0:00:10.6]} 48... Kf5 {[%clk 0:00:39.2]} 49. h5 {[%clk 0:00:10.6]}
49... Rxc6 {[%clk 0:00:33.2]} 50. Kxf3 {[%clk 0:00:11.3]} 50... Rc3+ {[%clk
0:00:32.9]} 51. Kg2 {[%clk 0:00:11.9]} 51... Rc1 {[%clk 0:00:20.6]} 52. Rg6
{[%clk 0:00:11]} 52... Ra1 {[%clk 0:00:20.9]} 53. Kh2 {[%clk 0:00:10.5]} 53...
Rb1 {[%clk 0:00:20.7]} 54. Kg2 {[%clk 0:00:09.4]} 54... Ra1 {[%clk 0:00:20.9]}
55. Rxh6 {[%clk 0:00:09.2]} 55... Kg5 {[%clk 0:00:21.5]} 56. Rh8 {[%clk
0:00:09.7]} 56... f5 {[%clk 0:00:22.1]} 57. h6 {[%clk 0:00:09.9]} 57... Kg6
{[%clk 0:00:21.4]} 58. Kf3 {[%clk 0:00:09.1]} 58... Ra4 {[%clk 0:00:21.6]} 59.
Rf8 {[%clk 0:00:08.6]} 59... Kxh6 {[%clk 0:00:21.7]} 60. Rxf5 {[%clk 0:00:08.9]}
60... Kg7 {[%clk 0:00:21.8]} 61. Rf4 {[%clk 0:00:08.5]} 61... Rxf4+ {[%clk
0:00:17.6]} 62. gxf4 {[%clk 0:00:08.4]} 62... Kf6 {[%clk 0:00:17.6]} 63. Ke4
{[%clk 0:00:09.3]} 63... Ke6 {[%clk 0:00:17.9]} 64. f5+ {[%clk 0:00:10.2]} 64...
Kf6 {[%clk 0:00:18.5]} 65. Kf4 {[%clk 0:00:11.1]} 65... Kf7 {[%clk 0:00:19]} 66.
Ke5 {[%clk 0:00:11.6]} 66... Ke7 {[%clk 0:00:19.2]} 67. f6+ {[%clk 0:00:12.5]}
67... Kf7 {[%clk 0:00:19.5]} 68. Kf5 {[%clk 0:00:13.4]} 68... Kf8 {[%clk
0:00:19.9]} 1/2-1/2

[Event "Late-Titled-Tuesday-Blitz-February-13-2024"]
[Site "Chess.com"]
[Date "2024.02.13"]
[Round "10"]
[White "JackRodgers"]
[Black "Flawless_Fighter"]
[Result "0-1"]
[WhiteElo "2539"]
[BlackElo "2745"]
[TimeControl "180+1"]
[EndTime "15:56:08 PST"]
[Termination "Flawless_Fighter won by resignation"]

1. d4 {[%clk 0:02:59.1]} 1... Nf6 {[%clk 0:03:00]} 2. Bg5 {[%clk 0:02:57.4]}
2... d5 {[%clk 0:02:59.5]} 3. Bxf6 {[%clk 0:02:57.1]} 3... gxf6 {[%clk
0:02:59.7]} 4. e3 {[%clk 0:02:57]} 4... c5 {[%clk 0:03:00]} 5. dxc5 {[%clk
0:02:57.9]} 5... Nc6 {[%clk 0:02:58.8]} 6. c4 {[%clk 0:02:56.8]} 6... d4 {[%clk
0:02:57.1]} 7. exd4 {[%clk 0:02:56.8]} 7... Nxd4 {[%clk 0:02:57.4]} 8. Bd3
{[%clk 0:02:57.1]} 8... e5 {[%clk 0:02:54]} 9. Ne2 {[%clk 0:02:54]} 9... Bxc5
{[%clk 0:02:53.9]} 10. Nbc3 {[%clk 0:02:50.8]} 10... Be6 {[%clk 0:02:53.3]} 11.
O-O {[%clk 0:02:43.7]} 11... Qd7 {[%clk 0:02:45.4]} 12. Nd5 {[%clk 0:02:31.4]}
12... Bxd5 {[%clk 0:02:32]} 13. cxd5 {[%clk 0:02:32.3]} 13... Qxd5 {[%clk
0:02:31.6]} 14. Bb5+ {[%clk 0:02:13.3]} 14... Ke7 {[%clk 0:02:31.6]} 15. Nxd4
{[%clk 0:02:13]} 15... Bxd4 {[%clk 0:02:30.1]} 16. Qe2 {[%clk 0:02:06.9]} 16...
Rhg8 {[%clk 0:02:27.7]} 17. g3 {[%clk 0:02:00]} 17... Rac8 {[%clk 0:02:23.8]}
18. Rfc1 {[%clk 0:01:53.9]} 18... f5 {[%clk 0:02:13.4]} 19. Bc4 {[%clk
0:01:44.8]} 19... Qc6 {[%clk 0:02:04.9]} 20. Bb3 {[%clk 0:01:16.8]} 20... Qb6
{[%clk 0:01:03.3]} 21. Kg2 {[%clk 0:01:13.8]} 21... f4 {[%clk 0:00:44.6]} 22.
Qf3 {[%clk 0:01:07.7]} 22... Bxb2 {[%clk 0:00:33.6]} 23. Rxc8 {[%clk 0:01:04.7]}
23... Rxc8 {[%clk 0:00:34.5]} 24. Re1 {[%clk 0:00:54.9]} 24... Bd4 {[%clk
0:00:34.2]} 25. Qxf4 {[%clk 0:00:50.3]} 25... Kd8 {[%clk 0:00:19]} 26. Qxf7
{[%clk 0:00:47.1]} 26... Qd6 {[%clk 0:00:14.5]} 27. Re4 {[%clk 0:00:40.4]} 27...
Rc7 {[%clk 0:00:12.1]} 28. Qg8+ {[%clk 0:00:35.9]} 28... Kd7 {[%clk 0:00:12.3]}
29. Ba4+ {[%clk 0:00:32.1]} 29... Ke7 {[%clk 0:00:10.2]} 30. Qxh7+ {[%clk
0:00:31.9]} 30... Ke6 {[%clk 0:00:07.1]} 31. Bb3+ {[%clk 0:00:31.7]} 31... Kf6
{[%clk 0:00:07.5]} 32. Qh6+ {[%clk 0:00:27.1]} 32... Ke7 {[%clk 0:00:07.8]} 33.
Qg7+ {[%clk 0:00:23.6]} 33... Kd8 {[%clk 0:00:08.2]} 34. Qg8+ {[%clk 0:00:22.5]}
34... Kd7 {[%clk 0:00:06]} 35. Ba4+ {[%clk 0:00:22.7]} 35... Ke7 {[%clk
0:00:06.6]} 36. Rh4 {[%clk 0:00:20.3]} 36... Qf6 {[%clk 0:00:04.4]} 37. Rh7+
{[%clk 0:00:19.6]} 37... Kd6 {[%clk 0:00:04.8]} 38. f4 {[%clk 0:00:09.5]} 38...
Rxh7 {[%clk 0:00:04.4]} 39. Qxh7 {[%clk 0:00:10.2]} 39... exf4 {[%clk
0:00:04.7]} 40. Qd7+ {[%clk 0:00:10.4]} 40... Kc5 {[%clk 0:00:04.7]} 41. Qc7+
{[%clk 0:00:10.4]} 41... Kb4 {[%clk 0:00:03.9]} 42. Bd1 {[%clk 0:00:08.6]} 42...
fxg3 {[%clk 0:00:02.6]} 43. Bf3 {[%clk 0:00:07.5]} 43... Qb6 {[%clk 0:00:02.1]}
44. Qc2 {[%clk 0:00:04.2]} 44... gxh2 {[%clk 0:00:01.8]} 45. Kxh2 {[%clk
0:00:04.2]} 45... Qc5 {[%clk 0:00:01.9]} 46. Qb3+ {[%clk 0:00:04]} 46... Ka5
{[%clk 0:00:02.5]} 47. Kg3 {[%clk 0:00:04]} 47... Be5+ {[%clk 0:00:02.5]} 48.
Kg2 {[%clk 0:00:04.1]} 48... Qd4 {[%clk 0:00:01.5]} 49. Kf1 {[%clk 0:00:04.1]}
49... b5 {[%clk 0:00:01.7]} 50. a3 {[%clk 0:00:04.3]} 50... a6 {[%clk
0:00:02.1]} 51. Be2 {[%clk 0:00:04.8]} 51... Qa1+ {[%clk 0:00:02]} 52. Kf2
{[%clk 0:00:05.1]} 52... Qd4+ {[%clk 0:00:02.9]} 53. Kf3 {[%clk 0:00:05.4]}
53... Qf4+ {[%clk 0:00:03.3]} 54. Kg2 {[%clk 0:00:06.1]} 54... Qg3+ {[%clk
0:00:03.9]} 55. Kf1 {[%clk 0:00:06.7]} 55... Qxb3 {[%clk 0:00:03.9]} 56. Kf2
{[%clk 0:00:06.8]} 56... Qxa3 {[%clk 0:00:03.7]} 57. Bxb5 {[%clk 0:00:07.4]}
57... axb5 {[%clk 0:00:03.5]} 0-1

[Event "Late-Titled-Tuesday-Blitz-February-13-2024"]
[Site "Chess.com"]
[Date "2024.02.13"]
[Round "10"]
[White "OneTrickPony_82"]
[Black "IngOscarArdila"]
[Result "0-1"]
[WhiteElo "2535"]
[BlackElo "2321"]
[TimeControl "180+1"]
[EndTime "15:56:10 PST"]
[Termination "IngOscarArdila won by resignation"]

1. d4 {[%clk 0:03:00.9]} 1... Nf6 {[%clk 0:02:57.2]} 2. Nc3 {[%clk 0:03:00.9]}
2... e6 {[%clk 0:02:55.6]} 3. e4 {[%clk 0:03:00.4]} 3... c5 {[%clk 0:02:55]} 4.
d5 {[%clk 0:02:59.6]} 4... exd5 {[%clk 0:02:54.8]} 5. exd5 {[%clk 0:02:59.7]}
5... d6 {[%clk 0:02:55.1]} 6. Nf3 {[%clk 0:02:57]} 6... Be7 {[%clk 0:02:55.4]}
7. Bc4 {[%clk 0:02:54.2]} 7... O-O {[%clk 0:02:55.4]} 8. O-O {[%clk 0:02:54]}
8... Bg4 {[%clk 0:02:55.2]} 9. h3 {[%clk 0:02:53.9]} 9... Bh5 {[%clk 0:02:55.1]}
10. Re1 {[%clk 0:02:47.2]} 10... Nbd7 {[%clk 0:02:55.1]} 11. g4 {[%clk
0:02:47.3]} 11... Bg6 {[%clk 0:02:54.7]} 12. Bf4 {[%clk 0:02:39.2]} 12... a6
{[%clk 0:02:53.4]} 13. a4 {[%clk 0:02:38.8]} 13... h5 {[%clk 0:02:46.6]} 14. Nh4
{[%clk 0:02:32.5]} 14... hxg4 {[%clk 0:02:25.3]} 15. Nxg6 {[%clk 0:02:31.7]}
15... fxg6 {[%clk 0:02:25.7]} 16. hxg4 {[%clk 0:02:31.6]} 16... Nh7 {[%clk
0:02:22.5]} 17. Qd2 {[%clk 0:02:24.7]} 17... Bg5 {[%clk 0:02:17.9]} 18. Re4
{[%clk 0:02:15.4]} 18... Qf6 {[%clk 0:02:15.4]} 19. Be3 {[%clk 0:02:07.6]} 19...
Ne5 {[%clk 0:02:09.5]} 20. Be2 {[%clk 0:01:49.8]} 20... Nf3+ {[%clk 0:01:12.4]}
21. Bxf3 {[%clk 0:01:49.7]} 21... Qxf3 {[%clk 0:01:13.3]} 22. Qe2 {[%clk
0:01:14.4]} 22... Bxe3 {[%clk 0:00:58.8]} 23. Rxe3 {[%clk 0:01:05.1]} 23... Qf4
{[%clk 0:00:48.4]} 24. Re4 {[%clk 0:01:00.7]} 24... Qf6 {[%clk 0:00:43.5]} 25.
f4 {[%clk 0:00:50.1]} 25... Qh4 {[%clk 0:00:40.2]} 26. Rf1 {[%clk 0:00:42.7]}
26... Nf6 {[%clk 0:00:39.5]} 27. Re6 {[%clk 0:00:38.9]} 27... Nxg4 {[%clk
0:00:26.5]} 28. Rxg6 {[%clk 0:00:38.5]} 28... Qg3+ {[%clk 0:00:19.4]} 29. Qg2
{[%clk 0:00:38.6]} 29... Qxg2+ {[%clk 0:00:17.6]} 30. Kxg2 {[%clk 0:00:39.1]}
30... Ne3+ {[%clk 0:00:18.2]} 31. Kf2 {[%clk 0:00:39.4]} 31... Nxf1 {[%clk
0:00:18.6]} 32. Kxf1 {[%clk 0:00:39.5]} 32... Rxf4+ {[%clk 0:00:18.9]} 33. Ke2
{[%clk 0:00:40.1]} 33... Rf6 {[%clk 0:00:18.9]} 34. Rg5 {[%clk 0:00:39.5]} 34...
Re8+ {[%clk 0:00:18.1]} 35. Kd3 {[%clk 0:00:36.1]} 35... Rf3+ {[%clk 0:00:18.1]}
36. Kc4 {[%clk 0:00:36.4]} 36... Rf4+ {[%clk 0:00:17.9]} 37. Kb3 {[%clk
0:00:36.6]} 37... Kf7 {[%clk 0:00:18.1]} 38. a5 {[%clk 0:00:35.4]} 38... Kf6
{[%clk 0:00:17.4]} 39. Rg3 {[%clk 0:00:35]} 39... g5 {[%clk 0:00:17.7]} 40. Nd1
{[%clk 0:00:32.6]} 40... Re1 {[%clk 0:00:14.1]} 41. Ne3 {[%clk 0:00:32.4]} 41...
Re2 {[%clk 0:00:11]} 42. c3 {[%clk 0:00:30.3]} 42... Rff2 {[%clk 0:00:09.9]} 43.
Nc4 {[%clk 0:00:30]} 43... Kf5 {[%clk 0:00:08.3]} 44. Nxd6+ {[%clk 0:00:30.1]}
44... Kf4 {[%clk 0:00:08.9]} 45. Rg1 {[%clk 0:00:23.1]} 45... Rxb2+ {[%clk
0:00:09]} 46. Kc4 {[%clk 0:00:23.6]} 46... g4 {[%clk 0:00:09.9]} 47. Kxc5 {[%clk
0:00:22.2]} 47... g3 {[%clk 0:00:09.8]} 48. Nc4 {[%clk 0:00:18.4]} 48... Rbe2
{[%clk 0:00:07.1]} 49. d6 {[%clk 0:00:18.5]} 49... Rd2 {[%clk 0:00:03.9]} 50.
Nxd2 {[%clk 0:00:16.4]} 50... Rxd2 {[%clk 0:00:04.8]} 51. c4 {[%clk 0:00:14.6]}
51... Kf3 {[%clk 0:00:05]} 52. Rf1+ {[%clk 0:00:12]} 52... Ke2 {[%clk
0:00:04.2]} 53. Rf5 {[%clk 0:00:10.5]} 53... g2 {[%clk 0:00:03.9]} 54. Rg5
{[%clk 0:00:10.9]} 54... Kf2 {[%clk 0:00:04.3]} 55. Rf5+ {[%clk 0:00:11.2]}
55... Ke1 {[%clk 0:00:04.3]} 56. Re5+ {[%clk 0:00:09.9]} 56... Kf1 {[%clk
0:00:04.6]} 57. Rf5+ {[%clk 0:00:09.5]} 57... Rf2 {[%clk 0:00:04.9]} 58. Rxf2+
{[%clk 0:00:09.4]} 58... Kxf2 {[%clk 0:00:04.8]} 59. d7 {[%clk 0:00:10]} 59...
g1=Q {[%clk 0:00:05.7]} 60. d8=Q {[%clk 0:00:10.2]} 60... Kf3+ {[%clk
0:00:06.6]} 61. Kd6 {[%clk 0:00:08.7]} 61... Qg3+ {[%clk 0:00:06.6]} 62. Ke7
{[%clk 0:00:08.3]} 62... Qe5+ {[%clk 0:00:06.5]} 63. Kf7 {[%clk 0:00:06.9]}
63... Qf5+ {[%clk 0:00:06]} 64. Qf6 {[%clk 0:00:07]} 64... Qxf6+ {[%clk
0:00:05.4]} 65. Kxf6 {[%clk 0:00:07.9]} 65... Ke4 {[%clk 0:00:06.1]} 66. Ke6
{[%clk 0:00:08.3]} 66... Kd4 {[%clk 0:00:06.7]} 67. Kd6 {[%clk 0:00:09.2]} 67...
Kxc4 {[%clk 0:00:07.2]} 68. Kc7 {[%clk 0:00:10.1]} 68... Kb5 {[%clk 0:00:07.5]}
69. Kxb7 {[%clk 0:00:10.2]} 69... Kxa5 {[%clk 0:00:08.1]} 70. Kc6 {[%clk
0:00:11.1]} 70... Kb4 {[%clk 0:00:08.3]} 0-1

[Event "Late-Titled-Tuesday-Blitz-February-13-2024"]
[Site "Chess.com"]
[Date "2024.02.13"]
[Round "10"]
[White "platy3"]
[Black "DeGrootteZ"]
[Result "1-0"]
[WhiteElo "2957"]
[BlackElo "2840"]
[TimeControl "180+1"]
[EndTime "15:56:13 PST"]
[Termination "platy3 won by resignation"]

1. e4 {[%clk 0:03:00.9]} 1... c5 {[%clk 0:02:59.9]} 2. Nf3 {[%clk 0:03:00.4]}
2... d6 {[%clk 0:03:00.5]} 3. d4 {[%clk 0:03:00.7]} 3... cxd4 {[%clk 0:03:01.4]}
4. Nxd4 {[%clk 0:03:01.6]} 4... Nf6 {[%clk 0:03:02.3]} 5. Nc3 {[%clk 0:03:02]}
5... Bd7 {[%clk 0:03:02.7]} 6. Bg5 {[%clk 0:02:59.2]} 6... e6 {[%clk 0:03:01.4]}
7. Ndb5 {[%clk 0:02:59.6]} 7... Bxb5 {[%clk 0:03:01.7]} 8. Bxb5+ {[%clk
0:02:59.5]} 8... Nc6 {[%clk 0:03:02.3]} 9. O-O {[%clk 0:02:59.1]} 9... Be7
{[%clk 0:03:01.6]} 10. Bxc6+ {[%clk 0:02:38.7]} 10... bxc6 {[%clk 0:03:02.5]}
11. Qd3 {[%clk 0:02:39.2]} 11... O-O {[%clk 0:03:00.5]} 12. Rad1 {[%clk
0:02:39.1]} 12... d5 {[%clk 0:02:52.7]} 13. b3 {[%clk 0:02:33.3]} 13... a5
{[%clk 0:02:43]} 14. Rfe1 {[%clk 0:02:27.6]} 14... Rb8 {[%clk 0:02:31]} 15. h3
{[%clk 0:02:24.9]} 15... h6 {[%clk 0:02:24.6]} 16. Bf4 {[%clk 0:02:13.6]} 16...
Rb4 {[%clk 0:02:17.2]} 17. Qf3 {[%clk 0:02:01.3]} 17... Qc8 {[%clk 0:01:30.5]}
18. Be5 {[%clk 0:01:39.6]} 18... Nd7 {[%clk 0:01:18.6]} 19. Bg3 {[%clk
0:01:30.7]} 19... Bf6 {[%clk 0:01:06.4]} 20. Bd6 {[%clk 0:01:28.3]} 20... Rd8
{[%clk 0:00:51.6]} 21. e5 {[%clk 0:01:15.9]} 21... Bg5 {[%clk 0:00:46]} 22. Bxb4
{[%clk 0:01:16.2]} 22... axb4 {[%clk 0:00:46.9]} 23. Na4 {[%clk 0:01:16.9]}
23... Qc7 {[%clk 0:00:40.6]} 24. Qg4 {[%clk 0:01:09.4]} 24... Nxe5 {[%clk
0:00:28.3]} 25. Qxb4 {[%clk 0:01:07.9]} 25... Bf6 {[%clk 0:00:20.3]} 26. Qb6
{[%clk 0:01:05.5]} 26... Qd6 {[%clk 0:00:18.3]} 27. Qc5 {[%clk 0:01:03.4]} 27...
Qc7 {[%clk 0:00:17.7]} 28. c4 {[%clk 0:00:55.9]} 28... Nd7 {[%clk 0:00:17]} 29.
Qb4 {[%clk 0:00:51]} 29... c5 {[%clk 0:00:16.6]} 30. Qd2 {[%clk 0:00:41.8]}
30... d4 {[%clk 0:00:17.1]} 31. Nb2 {[%clk 0:00:41.1]} 31... e5 {[%clk
0:00:17.5]} 32. Nd3 {[%clk 0:00:41.2]} 32... Qc6 {[%clk 0:00:17.2]} 33. Qe2
{[%clk 0:00:41]} 33... Re8 {[%clk 0:00:16.8]} 34. Qe4 {[%clk 0:00:29.4]} 34...
Qxe4 {[%clk 0:00:17.2]} 35. Rxe4 {[%clk 0:00:30.3]} 35... Ra8 {[%clk 0:00:17.5]}
36. Rd2 {[%clk 0:00:28.4]} 36... g6 {[%clk 0:00:17.9]} 37. f4 {[%clk 0:00:20.8]}
37... exf4 {[%clk 0:00:17.1]} 38. Nxf4 {[%clk 0:00:21.1]} 38... Bg5 {[%clk
0:00:17.3]} 39. Rde2 {[%clk 0:00:20.2]} 39... Nf6 {[%clk 0:00:16.3]} 40. Nd3
{[%clk 0:00:17.7]} 40... Nxe4 {[%clk 0:00:16.5]} 41. Rxe4 {[%clk 0:00:18.6]}
41... Rxa2 {[%clk 0:00:16.6]} 42. Nxc5 {[%clk 0:00:19.1]} 42... Rb2 {[%clk
0:00:16.3]} 43. Kf1 {[%clk 0:00:16.9]} 43... d3 {[%clk 0:00:16.7]} 44. Nxd3
{[%clk 0:00:09.5]} 44... Rxb3 {[%clk 0:00:17.3]} 45. Ke2 {[%clk 0:00:10.3]}
45... Rc3 {[%clk 0:00:16.9]} 46. h4 {[%clk 0:00:07.3]} 46... f5 {[%clk
0:00:12.2]} 47. Rd4 {[%clk 0:00:04.6]} 47... Bf6 {[%clk 0:00:12.4]} 48. Rd6
{[%clk 0:00:04.9]} 48... Bxh4 {[%clk 0:00:11]} 49. Rxg6+ {[%clk 0:00:04.3]}
49... Kf7 {[%clk 0:00:11]} 50. Rxh6 {[%clk 0:00:04.1]} 50... Bg5 {[%clk
0:00:08.3]} 51. Rc6 {[%clk 0:00:03.8]} 51... Bf6 {[%clk 0:00:07.3]} 52. Nf4
{[%clk 0:00:03.1]} 52... Be5 {[%clk 0:00:05.4]} 53. Nd5 {[%clk 0:00:03.2]} 53...
Rc2+ {[%clk 0:00:06]} 54. Kf3 {[%clk 0:00:03.9]} 54... Ra2 {[%clk 0:00:05.5]}
55. Ne3 {[%clk 0:00:04.3]} 55... Ra3 {[%clk 0:00:05.8]} 56. Ke2 {[%clk 0:00:05]}
56... Ra2+ {[%clk 0:00:05.8]} 57. Kd1 {[%clk 0:00:05.6]} 57... f4 {[%clk
0:00:05.7]} 58. Ng4 {[%clk 0:00:06.2]} 58... Rxg2 {[%clk 0:00:06.1]} 59. Nxe5+
{[%clk 0:00:06.3]} 59... Ke7 {[%clk 0:00:07]} 60. Nd3 {[%clk 0:00:05.9]} 60...
f3 {[%clk 0:00:06.9]} 61. Ke1 {[%clk 0:00:06.3]} 61... Re2+ {[%clk 0:00:07.2]}
62. Kf1 {[%clk 0:00:06.7]} 62... Rd2 {[%clk 0:00:07.3]} 63. Ne5 {[%clk
0:00:06.2]} 63... Rc2 {[%clk 0:00:06]} 64. Nxf3 {[%clk 0:00:06.2]} 64... Kd7
{[%clk 0:00:06.7]} 65. Rc5 {[%clk 0:00:05.8]} 65... Kd6 {[%clk 0:00:07.3]} 66.
Rd5+ {[%clk 0:00:06.2]} 66... Kc6 {[%clk 0:00:07.8]} 67. Nd4+ {[%clk 0:00:06.6]}
1-0

[Event "Late-Titled-Tuesday-Blitz-February-13-2024"]
[Site "Chess.com"]
[Date "2024.02.13"]
[Round "10"]
[White "trriinu"]
[Black "PepeCuenca"]
[Result "0-1"]
[WhiteElo "2251"]
[BlackElo "2636"]
[TimeControl "180+1"]
[EndTime "15:56:27 PST"]
[Termination "PepeCuenca won on time"]

1. e4 {[%clk 0:02:59.3]} 1... d6 {[%clk 0:02:59.1]} 2. d4 {[%clk 0:02:58.9]}
2... Nf6 {[%clk 0:02:59.5]} 3. Nc3 {[%clk 0:02:59.6]} 3... e5 {[%clk 0:03:00.1]}
4. Nf3 {[%clk 0:02:58.4]} 4... Nbd7 {[%clk 0:03:00.1]} 5. Be2 {[%clk 0:02:57]}
5... Be7 {[%clk 0:03:00]} 6. O-O {[%clk 0:02:57.3]} 6... O-O {[%clk 0:03:00.6]}
7. h3 {[%clk 0:02:56.9]} 7... c6 {[%clk 0:03:01]} 8. Be3 {[%clk 0:02:57.1]} 8...
b5 {[%clk 0:03:01.1]} 9. a3 {[%clk 0:02:57.1]} 9... a5 {[%clk 0:02:54.6]} 10. d5
{[%clk 0:02:47.8]} 10... cxd5 {[%clk 0:02:47.6]} 11. exd5 {[%clk 0:02:47.8]}
11... Bb7 {[%clk 0:02:32.4]} 12. Bxb5 {[%clk 0:02:44.2]} 12... Qc7 {[%clk
0:02:28.8]} 13. Qd2 {[%clk 0:02:25.3]} 13... Nb6 {[%clk 0:02:27.7]} 14. Bxb6
{[%clk 0:02:21.1]} 14... Qxb6 {[%clk 0:02:27.2]} 15. a4 {[%clk 0:02:20.7]} 15...
Nh5 {[%clk 0:02:14.8]} 16. g3 {[%clk 0:02:09.2]} 16... Nxg3 {[%clk 0:02:01.3]}
17. Rfe1 {[%clk 0:01:27.6]} 17... Nh5 {[%clk 0:02:00.4]} 18. Kh2 {[%clk
0:01:23.8]} 18... Nf4 {[%clk 0:01:56.5]} 19. Rg1 {[%clk 0:01:23.8]} 19... g6
{[%clk 0:01:54.7]} 20. Rg3 {[%clk 0:01:02.4]} 20... Rac8 {[%clk 0:01:52.5]} 21.
Ng5 {[%clk 0:00:54.5]} 21... Bxg5 {[%clk 0:01:12.2]} 22. Rxg5 {[%clk 0:00:55.4]}
22... f5 {[%clk 0:01:08.1]} 23. Rag1 {[%clk 0:00:39.9]} 23... Rf7 {[%clk
0:01:00.7]} 24. Bd3 {[%clk 0:00:24.1]} 24... Qd4 {[%clk 0:00:50.3]} 25. Qe3
{[%clk 0:00:09.9]} 25... Qxe3 {[%clk 0:00:40]} 26. fxe3 {[%clk 0:00:10.8]} 26...
Nxd3 {[%clk 0:00:38.1]} 27. cxd3 {[%clk 0:00:10.3]} 27... Ba6 {[%clk 0:00:38.4]}
28. d4 {[%clk 0:00:05.3]} 28... exd4 {[%clk 0:00:27.9]} 29. exd4 {[%clk
0:00:06.2]} 29... Rb8 {[%clk 0:00:27.4]} 30. R1g2 {[%clk 0:00:06]} 30... Bc4
{[%clk 0:00:20.7]} 31. Nd1 {[%clk 0:00:06.1]} 31... Bxd5 {[%clk 0:00:19.9]} 32.
Rf2 {[%clk 0:00:06.4]} 32... Bb3 {[%clk 0:00:18.2]} 33. Ne3 {[%clk 0:00:06.3]}
33... Bxa4 {[%clk 0:00:17.9]} 34. Nxf5 {[%clk 0:00:06]} 34... Kh8 {[%clk
0:00:15.7]} 35. Kg3 {[%clk 0:00:01.5]} 35... Rxf5 {[%clk 0:00:12.6]} 36. Rgxf5
{[%clk 0:00:01.6]} 36... gxf5 {[%clk 0:00:13.5]} 37. Rxf5 {[%clk 0:00:02.1]}
37... Rb5 {[%clk 0:00:12.4]} 38. Rf6 {[%clk 0:00:01.3]} 38... d5 {[%clk
0:00:12]} 39. Rd6 {[%clk 0:00:01.5]} 39... Bb3 {[%clk 0:00:11.9]} 40. Kf4 {[%clk
0:00:01.9]} 40... Bc4 {[%clk 0:00:11.6]} 41. Ra6 {[%clk 0:00:02.1]} 41... Rxb2
{[%clk 0:00:09.7]} 42. Rxa5 {[%clk 0:00:02.3]} 42... Rb7 {[%clk 0:00:07]} 43.
Ke5 {[%clk 0:00:02.1]} 43... Kg7 {[%clk 0:00:07.1]} 44. Rc5 {[%clk 0:00:02.2]}
44... Re7+ {[%clk 0:00:07.2]} 45. Kf5 {[%clk 0:00:02.2]} 45... Rf7+ {[%clk
0:00:06.8]} 46. Kg5 {[%clk 0:00:02.6]} 46... h6+ {[%clk 0:00:07]} 47. Kg4 {[%clk
0:00:02.6]} 47... Be2+ {[%clk 0:00:06.4]} 48. Kg3 {[%clk 0:00:03]} 48... Bf3
{[%clk 0:00:06.6]} 49. Rc6 {[%clk 0:00:02.8]} 49... Be4 {[%clk 0:00:06.9]} 50.
Rd6 {[%clk 0:00:02.8]} 50... Rf6 {[%clk 0:00:07.3]} 51. Rd7+ {[%clk 0:00:03]}
51... Kg6 {[%clk 0:00:07.9]} 52. Rd8 {[%clk 0:00:03.5]} 52... Rf3+ {[%clk
0:00:07.9]} 53. Kg4 {[%clk 0:00:03.3]} 53... h5+ {[%clk 0:00:08.2]} 54. Kh4
{[%clk 0:00:03.5]} 54... Rf4+ {[%clk 0:00:08.4]} 55. Kg3 {[%clk 0:00:03.9]}
55... Rf7 {[%clk 0:00:08.1]} 56. Rd6+ {[%clk 0:00:03.9]} 56... Rf6 {[%clk
0:00:06.6]} 57. Rd8 {[%clk 0:00:04.1]} 57... Kg5 {[%clk 0:00:06.8]} 58. h4+
{[%clk 0:00:03.8]} 58... Kf5 {[%clk 0:00:06.5]} 59. Rh8 {[%clk 0:00:03.4]} 59...
Rg6+ {[%clk 0:00:06.5]} 60. Kh3 {[%clk 0:00:03.8]} 60... Bf3 {[%clk 0:00:04.8]}
61. Re8 {[%clk 0:00:03]} 61... Kf4 {[%clk 0:00:04.6]} 62. Re5 {[%clk 0:00:02.6]}
62... Be4 {[%clk 0:00:03.7]} 63. Re8 {[%clk 0:00:01.2]} 63... Ke3 {[%clk
0:00:03.8]} 0-1